Workbook

Sheet 初中语文
A1: 2023年万安县县直学校公开选调教师笔试前成绩公示表
A2: 报考岗位：初中语文 计划3人
A3: 序号 | B3: 姓 名 | C3: 性别 | D3: 本县公办学校任教工作年限 | E3: 笔试 成绩 | F3: 教学 成绩 | G3: 学校 评价 | H3: 奖励加分 | M3: 评定 总成绩
H4: 村小 任教 | I4: 综合奖 | J4: 优课赛 | K4: 班主任 | L4: 合计
A5: 1 | B5: 刘可臻 | C5: 女 | D5: 7 | F5: 12.94 | G5: 3 | K5: 1.2 | L5: =SUM(H5:K5) -> 1.2
A6: 2 | B6: 谢淑珍 | C6: 女 | D6: 9 | F6: 21.41 | G6: 3 | H6: 1.5 | I6: 1 | J6: 0.4 | K6: 2 | L6: =SUM(H6:K6) -> 4.9
A7: 3 | B7: 刘菁 | C7: 女 | D7: 7 | F7: 16.51 | G7: 3 | K7: 2 | L7: 2
A8: 4 | B8: 钟佳祥 | C8: 女 | D8: 6 | F8: 15.24 | G8: 3 | I8: 0.5 | J8: 0.2 | K8: 1.2 | L8: 1.9
A9: 5 | B9: 肖迎君 | C9: 女 | D9: 6 | F9: 18.31 | G9: 3 | I9: 0.5 | J9: 0.4 | K9: 0.6 | L9: 1.5
A10: 6 | B10: 黄婧 | C10: 女 | D10: 15 | F10: 15.19 | G10: 3 | I10: 1 | J10: 1.9 | K10: 0.6 | L10: 3.5
A11: 7 | B11: 刘娟娣 | C11: 女 | D11: 6 | F11: 13.84 | G11: 3 | I11: 0.5 | J11: 1.6 | K11: 2 | L11: 4.1
A12: 8 | B12: 李静 | C12: 女 | D12: 7 | F12: 16.03 | G12: 3 | J12: 0.2 | K12: 2 | L12: 2.2
A13: 9 | B13: 温萍香 | C13: 女 | D13: 6 | F13: 16.43 | G13: 3 | K13: 1.2 | L13: 1.2
A14: 10 | B14: 石林芳 | C14: 女 | D14: 19 | F14: 15.59 | G14: 3 | I14: 1.5 | J14: 0.2 | K14: 2 | L14: 3.7
A15: 11 | B15: 陈静波 | C15: 女 | D15: 7 | F15: 15.05 | G15: 3 | I15: 0.5 | J15: 0.4 | K15: 2 | L15: 2.9

Sheet 初中数学
A1: 2023年万安县县直学校公开选调教师笔试前成绩公示表
A2: 报考岗位：初中数学 计划2人
A3: 序号 | B3: 姓 名 | C3: 性别 | D3: 本县公办学校任教工作年限 | E3: 笔试 成绩 | F3: 教学 成绩 | G3: 学校 评价 | H3: 奖励加分 | M3: 评定 总成绩
H4: 村小 任教 | I4: 综合奖 | J4: 优课赛 | K4: 班主任 | L4: 合计
A5: 1 | B5: 黄艳 | C5: 女 | D5: 6 | F5: 12.28 | G5: 3 | K5: 1.8 | L5: =SUM(H5:K5) -> 1.8
A6: 2 | B6: 刘莉 | C6: 女 | D6: 6 | F6: 7.86 | G6: 3 | J6: 0.2 | K6: 1.2 | L6: 1.4
A7: 3 | B7: 黎丽 | C7: 女 | D7: 6 | F7: 14.31 | G7: 3 | I7: 0.5 | J7: 1 | K7: 2 | L7: 3.5
A8: 4 | B8: 刘过房 | C8: 男 | D8: 6 | F8: 5.44 | G8: 3 | J8: 0.6 | K8: 2 | L8: =SUM(H8:K8) -> 2.6
A9: 5 | B9: 刘艳婷 | C9: 女 | D9: 8 | F9: 23.97 | G9: 3 | J9: 0.8 | K9: 0.9 | L9: 1.7
A10: 6 | B10: 郭万梅 | C10: 女 | D10: 4 | F10: 22.36 | G10: 3 | I10: 0.5 | J10: 0.8 | K10: 2 | L10: 3.3
A11: 7 | B11: 朱茵 | C11: 女 | D11: 7 | F11: 7.55 | G11: 3 | K11: 1.5 | L11: 1.5
A12: 8 | B12: 孙宁 | C12: 男 | D12: 27 | F12: 8.18 | G12: 3 | H12: 0.5 | I12: 0.5 | K12: 2 | L12: 3
A13: 9 | B13: 陈中华 | C13: 男 | D13: 14 | F13: 7.97 | G13: 3 | K13: 1.8 | L13: 1.8

Sheet 初中英语
A1: 2023年万安县县直学校公开选调教师笔试前成绩公示表
A2: 报考岗位：初中英语 计划2人
A3: 序号 | B3: 姓 名 | C3: 性别 | D3: 本县公办学校任教工作年限 | E3: 笔试 成绩 | F3: 教学 成绩 | G3: 学校 评价 | H3: 奖励加分 | M3: 评定 总成绩
H4: 村小 任教 | I4: 综合奖 | J4: 优课赛 | K4: 班主任 | L4: 合计
A5: 1 | B5: 黄丽莉 | C5: 女 | D5: 6 | F5: 13.22 | G5: 3 | J5: 0.2 | K5: 1.2 | L5: =SUM(H5:K5) -> 1.4
A6: 2 | B6: 杜佼纭 | C6: 女 | D6: 7 | F6: 5.51 | G6: 3 | I6: 0.5 | J6: 0.2 | K6: 2 | L6: =SUM(H6:K6) -> 2.7
A7: 3 | B7: 刘小艳 | C7: 女 | D7: 15 | F7: 22.77 | G7: 3 | I7: 1 | J7: 1 | K7: 2 | L7: 4
A8: 4 | B8: 高洁 | C8: 女 | D8: 3 | F8: 5.26 | G8: 3 | H8: 1 | I8: 0.5 | K8: 1.2 | L8: 2.7
A9: 5 | B9: 凌珊 | C9: 女 | D9: 10 | F9: 5.27 | G9: 3 | I9: 0.5 | K9: 1.8 | L9: 2.3
A10: 6 | B10: 刘秋红 | C10: 女 | D10: 17 | F10: 16.32 | G10: 3 | I10: 1 | K10: 2 | L10: 3
A11: 7 | B11: 黄小权 | C11: 男 | D11: 6 | F11: 9.91 | G11: 3 | I11: 1 | K11: 2 | L11: 3
A12: 8 | B12: 刘星 | C12: 女 | D12: 5 | F12: 22.80 | G12: 3 | I12: 0.5 | J12: 0.8 | K12: 2 | L12: 3.3
A13: 9 | B13: 洪彩芳 | C13: 女 | D13: 8 | F13: 15.90 | G13: 3 | I13: 0.5 | J13: 0.6 | K13: 1.8 | L13: 2.9
A14: 10 | B14: 刘苏琴 | C14: 女 | D14: 15 | F14: 7.66 | G14: 3 | J14: 1 | K14: 2 | L14: 3
A15: 11 | B15: 温丽兰 | C15: 女 | D15: 15 | F15: 11.54 | G15: 3 | I15: 0.5 | J15: 0.2 | K15: 2 | L15: 2.7
A16: 12 | B16: 曾明珺 | C16: 女 | D16: 7 | F16: 18.22 | G16: 3 | K16: 1.8 | L16: 1.8
A17: 13 | B17: 包春梅 | C17: 女 | D17: 6 | F17: 4.23 | G17: 3 | I17: 0.5 | K17: 1.2 | L17: 1.7
A18: 14 | B18: 李娟 | C18: 女 | D18: 14 | F18: 19.01 | G18: 3 | I18: 1 | J18: 0.8 | K18: 2 | L18: 3.8
A19: 15 | B19: 李丽 | C19: 女 | D19: 17 | F19: 19.43 | G19: 3 | I19: 1.5 | K19: 2 | L19: 3.5

Sheet 初中其他
A1: 2023年万安县县直学校公开选调教师笔试前成绩公示表
A2: 报考岗位：初中物理 计划1人
A3: 序号 | B3: 姓 名 | C3: 性别 | D3: 本县公办学校任教工作年限 | E3: 笔试 成绩 | F3: 教学 成绩 | G3: 学校 评价 | H3: 奖励加分 | M3: 评定 总成绩
H4: 村小 任教 | I4: 综合奖 | J4: 优课赛 | K4: 班主任 | L4: 合计
A5: 1 | B5: 刘莉 | C5: 女 | D5: 8 | F5: 15.58 | G5: 3 | I5: 0.5 | J5: 1.2 | K5: 0.6 | L5: =SUM(H5:K5) -> 2.3
A6: 2 | B6: 肖敏 | C6: 女 | D6: 6 | F6: 18.11 | G6: 3 | I6: 1.5 | K6: 2 | L6: =SUM(H6:K6) -> 3.5
A7: 报考岗位：初中化学 计划2人
A8: 序号 | B8: 姓 名 | C8: 性别 | D8: 本县公办学校任教工作年限 | E8: 笔试 成绩 | F8: 教学 成绩 | G8: 学校 评价 | H8: 奖励加分 | M8: 评定 总成绩
H9: 村小 任教 | I9: 综合奖 | J9: 优课赛 | K9: 班主任 | L9: 合计
A10: 1 | B10: 钟玉燕 | C10: 女 | D10: 5 | F10: 12.71 | G10: 3 | J10: 0.2 | K10: 2 | L10: =SUM(H10:K10) -> 2.2
A11: 2 | B11: 陈艳丽 | C11: 女 | D11: 7 | F11: 14.74 | G11: 3 | I11: 0.5 | J11: 0.8 | L11: =SUM(H11:K11) -> 1.3
A12: 3 | B12: 温余芳 | C12: 女 | D12: 17 | F12: 12.78 | G12: 3 | J12: 0.2 | K12: 0.6 | L12: 0.8
A13: 4 | B13: 周扬 | C13: 男 | D13: 8 | F13: 8.66 | G13: 3 | J13: 1.8 | K13: 2 | L13: 3.8
A14: 报考岗位：初中生物 计划2人
A15: 序号 | B15: 姓 名 | C15: 性别 | D15: 本县公办学校任教工作年限 | E15: 笔试 成绩 | F15: 教学 成绩 | G15: 学校 评价 | H15: 奖励加分 | M15: 评定 总成绩
H16: 村小 任教 | I16: 综合奖 | J16: 优课赛 | K16: 班主任 | L16: 合计
A17: 1 | B17: 朱珊兰 | C17: 女 | D17: 5 | F17: 14.11 | G17: 3 | L17: =SUM(H17:K17) -> 0
A18: 2 | B18: 刘茳 | C18: 女 | D18: 13 | F18: 14.29 | G18: 3 | J18: 0.4 | K18: 0.6 | L18: 1
A19: 3 | B19: 刘甜 | C19: 女 | D19: 9 | F19: 21.26 | G19: 3 | H19: 2 | J19: 0.8 | K19: 2 | L19: 4.8
A20: 4 | B20: 罗艳 | C20: 女 | D20: 6 | F20: 23.86 | G20: 3 | K20: 1.2 | L20: 1.2
A21: 5 | B21: 赵珑娟 | C21: 女 | D21: 6 | F21: 22.12 | G21: 3 | J21: 0.4 | K21: 2 | L21: 2.4
A22: 报考岗位：初中道法 计划2人
A23: 序号 | B23: 姓 名 | C23: 性别 | D23: 本县公办学校任教工作年限 | E23: 笔试 成绩 | F23: 教学 成绩 | G23: 学校 评价 | H23: 奖励加分 | M23: 评定 总成绩
H24: 村小 任教 | I24: 综合奖 | J24: 优课赛 | K24: 班主任 | L24: 合计
A25: 1 | B25: 衷海燕 | C25: 女 | D25: 7 | F25: 17.25 | G25: 3 | J25: 0.2 | K25: 0.6 | L25: =SUM(H25:K25) -> 0.8
A26: 2 | B26: 刘航 | C26: 女 | D26: 8 | F26: 19.58 | G26: 3 | J26: 0.4 | K26: 2 | L26: 2.4
A27: 3 | B27: 雷婷 | C27: 女 | D27: 6 | F27: 13.62 | G27: 3 | H27: 0.5 | J27: 0.6 | K27: 1.8 | L27: 2.9
A28: 报考岗位：初中历史 计划1人
A29: 序号 | B29: 姓 名 | C29: 性别 | D29: 本县公办学校任教工作年限 | E29: 笔试 成绩 | F29: 教学 成绩 | G29: 学校 评价 | H29: 奖励加分 | M29: 评定 总成绩
H30: 村小 任教 | I30: 综合奖 | J30: 优课赛 | K30: 班主任 | L30: 合计
A31: 1 | B31: 刘芳 | C31: 女 | D31: 6 | F31: 13.21 | G31: 3 | J31: 0.6 | K31: 0.6 | L31: =SUM(H31:K31) -> 1.2
A32: 2 | B32: 肖承方 | C32: 女 | D32: 6 | F32: 7.02 | G32: 3 | L32: 0
A33: 3 | B33: 王芳 | C33: 女 | D33: 12 | F33: 4.24 | G33: 3 | L33: 0
A34: 报考岗位：初中地理 计划2人
A35: 序号 | B35: 姓 名 | C35: 性别 | D35: 本县公办学校任教工作年限 | E35: 笔试 成绩 | F35: 教学 成绩 | G35: 学校 评价 | H35: 奖励加分 | M35: 评定 总成绩
H36: 村小 任教 | I36: 综合奖 | J36: 优课赛 | K36: 班主任 | L36: 合计
A37: 1 | B37: 温书有 | C37: 男 | D37: 9 | F37: 14.65 | G37: 3 | J37: 0.2 | K37: 2 | L37: =SUM(H37:K37) -> 2.2
A38: 2 | B38: 肖丽 | C38: 女 | D38: 16 | F38: 23.53 | G38: 3 | I38: 0.5 | J38: 0.4 | K38: 2 | L38: 2.9
A39: 3 | B39: 刘钰 | C39: 女 | D39: 14 | F39: 8.69 | G39: 3 | K39: 0.6 | L39: 0.6
A40: 4 | B40: 傅芳盛 | C40: 男 | D40: 18 | F40: 1.84 | G40: 3 | H40: 0.5 | L40: 0.5
A41: 报考岗位：初中体育 计划2人
A42: 序号 | B42: 姓 名 | C42: 性别 | D42: 本县公办学校任教工作年限 | E42: 笔试 成绩 | F42: 教学 成绩 | G42: 学校 评价 | H42: 奖励加分 | M42: 评定 总成绩
H43: 村小 任教 | I43: 综合奖 | J43: 优课赛 | K43: 班主任 | L43: 合计
A44: 1 | B44: 范忠海 | C44: 男 | D44: 6 | G44: 3 | J44: 6 | K44: 2 | L44: =SUM(H44:K44) -> 8
A45: 2 | B45: 周崇辉 | C45: 男 | D45: 12 | G45: 3 | J45: 6 | K45: 1.8 | L45: 7.8
A46: 3 | B46: 李鹏 | C46: 男 | D46: 3 | G46: 3 | J46: 1.8 | K46: 2 | L46: 3.8
A47: 4 | B47: 管华清 | C47: 女 | D47: 9 | G47: 3 | J47: 0.8 | K47: 1.5 | L47: 2.3
A48: 5 | B48: 杨强 | C48: 男 | D48: 6 | G48: 3 | I48: 0.5 | J48: 6.6 | L48: 7.1
A49: 6 | B49: 温庆林 | C49: 男 | D49: 6 | G49: 3 | J49: 2.4 | K49: 2 | L49: =SUM(H49:K49) -> 4.4
A50: 报考岗位：初中心理健康 计划1人
A51: 序号 | B51: 姓 名 | C51: 性别 | D51: 本县公办学校任教工作年限 | E51: 笔试 成绩 | F51: 教学 成绩 | G51: 学校 评价 | H51: 奖励加分 | M51: 评定 总成绩
H52: 村小 任教 | I52: 综合奖 | J52: 优课赛 | K52: 班主任 | L52: 合计

Sheet 小学语文
A1: 2023年万安县县直学校公开选调教师笔试前成绩公示表
A2: 报考岗位：小学语文 计划5人
A3: 序号 | B3: 姓 名 | C3: 性别 | D3: 本县公办学校任教工作年限 | E3: 笔试成绩 | F3: 教学 成绩 | G3: 学校评价 | H3: 奖励加分 | M3: 评定 总成绩
H4: 村小任教 | I4: 综合奖 | J4: 优课赛 | K4: 班主任 | L4: 合计
A5: 1 | B5: 罗小青 | C5: 女 | D5: 9 | F5: 18.12 | G5: 3 | I5: 0.5 | J5: 0.4 | K5: 2 | L5: =SUM(H5:K5) -> 2.9
A6: 2 | B6: 肖玮芬 | C6: 女 | D6: 7 | F6: 22.77 | G6: 3 | I6: 0.5 | J6: 0.6 | K6: 2 | L6: =SUM(H6:K6) -> 3.1
A7: 3 | B7: 温丽祯 | C7: 女 | D7: 11 | F7: 14.45 | G7: 3 | I7: 0.5 | J7: 0.4 | K7: 2 | L7: 2.9
A8: 4 | B8: 刘柳芳 | C8: 女 | D8: 6 | F8: 16.19 | G8: 2.93 | H8: 1.75 | J8: 0.4 | K8: 2 | L8: 4.15
A9: 5 | B9: 郭莎莎 | C9: 女 | D9: 6 | F9: 15.19 | G9: 3 | K9: 2 | L9: 2
A10: 6 | B10: 罗丽 | C10: 女 | D10: 8 | F10: 20.54 | G10: 3 | I10: 0.5 | K10: 2 | L10: 2.5
A11: 7 | B11: 李来建 | C11: 女 | D11: 9 | F11: 22.71 | G11: 3 | H11: 2 | I11: 0.5 | K11: 2 | L11: 4.5
A12: 8 | B12: 康珍珍 | C12: 女 | D12: 7 | F12: 19.84 | G12: 3 | K12: 1.8 | L12: 1.8
A13: 9 | B13: 钟建清 | C13: 女 | D13: 11 | F13: 12.13 | G13: 3 | H13: 2 | I13: 0.5 | K13: 2 | L13: 4.5
A14: 10 | B14: 郭立红 | C14: 女 | D14: 9 | F14: 17.34 | G14: 3 | I14: 0.5 | J14: 0.4 | K14: 2 | L14: 2.9
A15: 11 | B15: 雷冬华 | C15: 女 | D15: 8 | F15: 17.89 | G15: 2.98 | H15: 2 | I15: 1 | K15: 2 | L15: 5
A16: 12 | B16: 陈丽平 | C16: 女 | D16: 6 | F16: 13.36 | G16: 3 | K16: 2 | L16: 2
A17: 13 | B17: 肖荃 | C17: 女 | D17: 10 | F17: 8.77 | G17: 3 | H17: 2 | K17: 2 | L17: 4
A18: 14 | B18: 罗明 | C18: 女 | D18: 6 | F18: 11.60 | G18: 3 | H18: 1 | K18: 2 | L18: 3
A19: 15 | B19: 罗兰 | C19: 女 | D19: 8 | F19: 16.26 | G19: 3 | H19: 0.25 | I19: 1 | J19: 1 | K19: 2 | L19: 4.25
A20: 16 | B20: 肖星 | C20: 女 | D20: 6 | F20: 10.64 | G20: 3 | H20: 0.5 | I20: 1 | K20: 2 | L20: 3.5
A21: 17 | B21: 叶明珠 | C21: 女 | D21: 5 | F21: 16.84 | G21: 3 | I21: 1 | J21: 2.2 | K21: 2 | L21: 5.2
A22: 18 | B22: 康书元 | C22: 男 | D22: 10 | F22: 21.51 | G22: 3 | J22: 0.6 | K22: 2 | L22: 2.6
A23: 19 | B23: 曾花 | C23: 女 | D23: 11 | F23: 14.45 | G23: 3 | I23: 1 | J23: 0.2 | K23: 2 | L23: 3.2
A24: 20 | B24: 熊燕 | C24: 女 | D24: 6 | F24: 21.37 | G24: 3 | H24: 1 | K24: 1.8 | L24: 2.8
A25: 21 | B25: 曾伟平 | C25: 男 | D25: 21 | F25: 19.61 | G25: 3 | H25: 2 | I25: 1.5 | J25: 0.2 | K25: 2 | L25: 5.7
A26: 22 | B26: 肖莉 | C26: 女 | D26: 9 | F26: 24.08 | G26: 3 | H26: 2 | K26: 2 | L26: 4
A27: 23 | B27: 陈霞 | C27: 女 | D27: 9 | F27: 19.10 | G27: 3 | J27: 0.4 | K27: 2 | L27: 2.4
A28: 24 | B28: 陈菲 | C28: 女 | D28: 8 | F28: 20.45 | G28: 3 | K28: 2 | L28: 2
A29: 25 | B29: 肖艳红 | C29: 女 | D29: 4 | F29: 15.11 | G29: 3 | H29: 2 | K29: 2 | L29: 4
A30: 26 | B30: 曾娟 | C30: 女 | D30: 10 | F30: 19.17 | G30: 2.95 | H30: 0.5 | I30: 0.5 | J30: 0.6 | K30: 2 | L30: 3.6
A31: 27 | B31: 谢春艳 | C31: 女 | D31: 10 | F31: 20.50 | G31: 2.94 | H31: 2 | K31: 2 | L31: 4
A32: 28 | B32: 李香 | C32: 女 | D32: 8 | F32: 17.86 | G32: 3 | K32: 1.8 | L32: 1.8
A33: 29 | B33: 陈国琴 | C33: 女 | D33: 7 | F33: 19.53 | G33: 3 | K33: 2 | L33: 2
A34: 30 | B34: 许琴 | C34: 女 | D34: 9 | F34: 14.72 | G34: 3 | K34: 2 | L34: =SUM(H34:K34) -> 2
A35: 31 | B35: 罗菲菲 | C35: 女 | D35: 9 | F35: 18.57 | G35: 3 | I35: 2 | J35: 0.6 | K35: 2 | L35: 4.6
A36: 32 | B36: 康琳霞 | C36: 女 | D36: 8 | F36: 20.13 | G36: 2.98 | H36: 1 | K36: 2 | L36: 3
A37: 33 | B37: 刘嘉玲 | C37: 女 | D37: 8 | F37: 18.78 | G37: 3 | K37: 2 | L37: 2
A38: 34 | B38: 陈澜 | C38: 女 | D38: 9 | F38: 16.37 | G38: 3 | K38: 2 | L38: 2

Sheet 小学数学
A1: 2023年万安县县直学校公开选调教师笔试前成绩公示表
A2: 报考岗位：小学数学 计划5人
A3: 序号 | B3: 姓 名 | C3: 性别 | D3: 本县公办学校任教工作年限 | E3: 笔试 成绩 | F3: 教学 成绩 | G3: 学校 评价 | H3: 奖励加分 | M3: 评定 总成绩
H4: 村小 任教 | I4: 综合奖 | J4: 优课赛 | K4: 班主任 | L4: 合计
A5: 1 | B5: 刘青 | C5: 女 | D5: 8 | F5: 17.66 | G5: 3 | I5: 1 | J5: 1.2 | K5: 2 | L5: =SUM(H5:K5) -> 4.2
A6: 2 | B6: 肖月青 | C6: 女 | D6: 6 | F6: 21.68 | G6: 3 | H6: 0.5 | K6: 0.6 | L6: =SUM(H6:K6) -> 1.1
A7: 3 | B7: 郭红梅 | C7: 女 | D7: 6 | F7: 21.95 | G7: 2.99 | H7: 1 | I7: 0.5 | J7: 0.4 | K7: 2 | L7: 3.9
A8: 4 | B8: 谢明峰 | C8: 男 | D8: 10 | F8: 12.96 | G8: 2.99 | K8: 2 | L8: 2
A9: 5 | B9: 邱芳 | C9: 女 | D9: 6 | F9: 16.64 | G9: 3 | J9: 0.4 | K9: 1.2 | L9: 1.6
A10: 6 | B10: 曾群婷 | C10: 女 | D10: 6 | F10: 20.29 | G10: 3 | K10: 2 | L10: 2
A11: 7 | B11: 王茜 | C11: 女 | D11: 9 | F11: 24.69 | G11: 3 | H11: 1 | I11: 0.5 | K11: 2 | L11: 3.5
A12: 8 | B12: 张彩梅 | C12: 女 | D12: 5 | F12: 18.52 | G12: 3 | K12: 2 | L12: 2
A13: 9 | B13: 巫爱平 | C13: 女 | D13: 10 | F13: 17.20 | G13: 3 | J13: 0.4 | K13: 0.6 | L13: 1
A14: 10 | B14: 郭常煌 | C14: 男 | D14: 13 | F14: 13.43 | G14: 3 | I14: 0.5 | K14: 2 | L14: 2.5
A15: 11 | B15: 周根利 | C15: 女 | D15: 11 | F15: 15.30 | G15: 3 | H15: 2 | I15: 1 | K15: 2 | L15: 5
A16: 12 | B16: 张虹 | C16: 女 | D16: 11 | F16: 21.89 | G16: 3 | K16: 2 | L16: 2
A17: 13 | B17: 邓丽君 | C17: 女 | D17: 5 | F17: 12.17 | G17: 3 | H17: 2 | K17: 2 | L17: 4
A18: 14 | B18: 余盼靛 | C18: 女 | D18: 7 | F18: 14.19 | G18: 3 | K18: 1.8 | L18: 1.8
A19: 15 | B19: 肖慧娟 | C19: 女 | D19: 6 | F19: 19.19 | G19: 3 | K19: 2 | L19: 2
A20: 16 | B20: 罗棋耀 | C20: 男 | D20: 8 | F20: 5.89 | G20: 3 | H20: 1.5 | K20: 2 | L20: 3.5
A21: 17 | B21: 郑雪梅 | C21: 女 | D21: 8 | F21: 15.79 | G21: 3 | H21: 2 | I21: 1 | J21: 0.2 | K21: 2 | L21: 5.2
A22: 18 | B22: 卢丹 | C22: 女 | D22: 10 | F22: 20.98 | G22: 3 | I22: 0.5 | K22: 1.8 | L22: 2.3
A23: 19 | B23: 宋雪连 | C23: 女 | D23: 12 | F23: 7.74 | G23: 3 | H23: 1 | I23: 2 | K23: 2 | L23: 5
A24: 20 | B24: 谢姝 | C24: 女 | D24: 6 | F24: 18.44 | G24: 3 | H24: 0.5 | J24: 0.2 | K24: 2 | L24: 2.7
A25: 21 | B25: 许蓝方 | C25: 女 | D25: 11 | F25: 20.90 | G25: 3 | I25: 0.5 | J25: 3 | K25: 2 | L25: 5.5
A26: 22 | B26: 李清 | C26: 女 | D26: 12 | F26: 22.91 | G26: 3 | H26: 2 | I26: 2 | K26: 2 | L26: 6
A27: 23 | B27: 张伟 | C27: 男 | D27: 8 | F27: 15.79 | G27: 3 | K27: 2 | L27: 2
A28: 24 | B28: 吴恒 | C28: 女 | D28: 5 | F28: 21.67 | G28: 3 | K28: 1.8 | L28: 1.8
A29: 25 | B29: 陈艳 | C29: 女 | D29: 11 | F29: 18.07 | G29: 3 | H29: 1.5 | I29: 2 | J29: 0.8 | K29: 0.9 | L29: 5.2
A30: 26 | B30: 兰霞 | C30: 女 | D30: 6 | F30: 21.46 | G30: 2.92 | I30: 0.5 | K30: 1.8 | L30: 2.3
A31: 27 | B31: 华婷 | C31: 女 | D31: 6 | F31: 24.31 | G31: 2.99 | I31: 0.5 | J31: 0.2 | K31: 2 | L31: 2.7
A32: 28 | B32: 肖桂梅 | C32: 女 | D32: 6 | F32: 18.15 | G32: 3 | H32: 0.5 | K32: 2 | L32: 2.5
A33: 29 | B33: 肖山洪 | C33: 女 | D33: 10 | F33: 15.57 | G33: 3 | H33: 2 | I33: 0.5 | K33: 2 | L33: 4.5
A34: 30 | B34: 何立平 | C34: 男 | D34: 9 | F34: 22.12 | G34: 3 | H34: 2 | K34: 2 | L34: 4
A35: 31 | B35: 许丽丽 | C35: 女 | D35: 9 | F35: 15.31 | G35: 3 | H35: 2 | I35: 0.5 | K35: 2 | L35: 4.5
A36: 32 | B36: 刘珊君 | C36: 女 | D36: 7 | F36: 25.99 | G36: 3 | I36: 0.5 | K36: 2 | L36: 2.5
A37: 33 | B37: 钟佩霖 | C37: 女 | D37: 10 | F37: 31.25 | G37: 3 | H37: 1 | I37: 0.5 | J37: 0.2 | K37: 2 | L37: 3.7
A38: 34 | B38: 许小梅 | C38: 女 | D38: 7 | F38: 19.73 | G38: 3 | I38: 0.5 | K38: 2 | L38: 2.5
A39: 35 | B39: 陈婷 | C39: 女 | D39: 7 | F39: 27.24 | G39: 3 | K39: 2 | L39: 2
A40: 36 | B40: 陈晶晶 | C40: 女 | D40: 6 | F40: 18.66 | G40: 2.99 | K40: 1.8 | L40: 1.8
A41: 37 | B41: 林茜 | C41: 女 | D41: 5 | F41: 18.17 | G41: 3 | I41: 0.5 | J41: 2 | K41: 1.5 | L41: 4
A42: 38 | B42: 陶琳 | C42: 女 | D42: 6 | F42: 20.55 | G42: 2.97 | J42: 1 | K42: 1.2 | L42: 2.2
A43: 39 | B43: 郭远香 | C43: 女 | D43: 6 | F43: 15.49 | G43: 3 | H43: 0.5 | K43: 1.5 | L43: 2
A44: 40 | B44: 曾英 | C44: 女 | D44: 10 | F44: 17.92 | G44: 2.93 | K44: 1.2 | L44: 1.2

Sheet 小学英语
A1: 2023年万安县县直学校公开选调教师笔试前成绩公示表
A2: 报考岗位：小学英语 计划2人
A3: 序号 | B3: 姓 名 | C3: 性别 | D3: 本县公办学校任教工作年限 | E3: 笔试 成绩 | F3: 教学 成绩 | G3: 学校 评价 | H3: 奖励加分 | M3: 评定 总成绩
H4: 村小 任教 | I4: 综合奖 | J4: 优课赛 | K4: 班主任 | L4: 合计
A5: 1 | B5: 郭红 | C5: 女 | D5: 4 | F5: 24.52 | G5: 3 | I5: 1 | L5: =SUM(H5:K5) -> 1
A6: 2 | B6: 梅英 | C6: 女 | D6: 3 | F6: 26.21 | G6: 3 | I6: 1 | J6: 0.8 | L6: =SUM(H6:K6) -> 1.8
A7: 3 | B7: 刘丽凤 | C7: 女 | D7: 6 | F7: 21.08 | G7: 2.92 | K7: 1.2 | L7: 1.2
A8: 4 | B8: 罗小芸 | C8: 女 | D8: 5 | F8: 15.98 | G8: 3 | J8: 0.2 | K8: 0.6 | L8: 0.8
A9: 5 | B9: 魏文兰 | C9: 女 | D9: 9 | F9: 17.42 | G9: 2.97 | L9: 0
A10: 6 | B10: 张川梅 | C10: 女 | D10: 8 | F10: 19.71 | G10: 3 | H10: 1 | K10: 0.9 | L10: 1.9

Sheet 小学体育美术
A1: 2023年万安县县直学校公开选调教师笔试前成绩公示表
A2: 报考岗位：小学体育 计划2人
A3: 序号 | B3: 姓 名 | C3: 性别 | D3: 本县公办学校任教工作年限 | E3: 笔试 成绩 | F3: 教学 成绩 | G3: 学校 评价 | H3: 奖励加分 | M3: 评定 总成绩
H4: 村小 任教 | I4: 综合奖 | J4: 优课赛 | K4: 班主任 | L4: 合计
A5: 1 | B5: 赖祥峰 | C5: 男 | D5: 6 | G5: 3 | H5: 0.5 | J5: 5.8 | K5: 2 | L5: =SUM(H5:K5) -> 8.3
A6: 2 | B6: 陈丹 | C6: 女 | D6: 6 | G6: 3 | J6: 1.2 | K6: 1.5 | L6: 2.7
A7: 3 | B7: 方伟州 | C7: 男 | D7: 6 | G7: 2.92 | J7: 6 | K7: 2 | L7: 8
A8: 4 | B8: 刘雅晨 | C8: 女 | D8: 6 | G8: 3 | J8: 2 | K8: 0.3 | L8: 2.3
A10: 报考岗位：小学美术 计划1人
A11: 序号 | B11: 姓 名 | C11: 性别 | D11: 本县公办学校任教工作年限 | E11: 笔试 成绩 | F11: 教学 成绩 | G11: 学校 评价 | H11: 奖励加分 | M11: 评定 总成绩
H12: 村小任教 | I12: 综合奖 | J12: 优课赛 | K12: 班主任 | L12: 合计
A13: 1 | B13: 罗钰 | C13: 女 | D13: 6 | G13: 3 | J13: 0.4 | K13: 1.8 | L13: =SUM(H13:K13) -> 2.2
A14: 2 | B14: 曾莉婷 | C14: 女 | D14: 3 | G14: 3 | H14: 0.75 | K14: 0.9 | L14: 1.65
A15: 3 | B15: 林峰 | C15: 男 | D15: 6 | G15: 3 | H15: 2 | K15: 2 | L15: 4
A16: 4 | B16: 刘芳 | C16: 女 | D16: 6 | G16: 3 | H16: 2 | I16: 0.5 | K16: 2 | L16: 4.5
A17: 5 | B17: 张依娜 | C17: 女 | D17: 6 | G17: 3 | J17: 2 | K17: 1.8 | L17: 3.8
